Cogmind - Beta 15 @@@ ROGUE MODE // 2025.10.21 @ 22:32:57 Player: Runagate Result: Destroyed by H-55 Commando with Gauss Rifle Performance ------------- Evolutions (3) 1500 Regions Visited (4) 800 Robots Destroyed (125) 625 Value Destroyed (3654) 3654 Prototype IDs (5) 100 Alien Tech Used (0) 0 Bonus (26) 26 TOTAL SCORE: 6705 Bonus ------- High Alert Combat Kills 26 Cogmind --------- Core Integrity 0/700 Matter 255/300 Energy 19/100 System Corruption 7% Temperature Cool (0) Movement Flying (29) Location -7/Factory Parts ------- > --- POWER (1) -------- (None) > --- PROPULSION (4) --- Improved Cesium-ion Thruster Cooled Cesium-ion Thruster Cooled Cesium-ion Thruster > --- UTILITY (5) ------ (None) > --- WEAPON (3) ------- (None) > --- INVENTORY (5) ---- Carbon-fiber Leg Titanium Leg Hardened Light Armor Plating Neutron Cannon Great Maul Peak State ------------ > --- POWER ------------ Light Angular Momentum Engine > --- PROPULSION ------- Titanium Leg Titanium Leg Improved Carbon-fiber Leg Improved Titanium Leg > --- UTILITY ---------- Cooling System Cooling System Large Storage Unit Advanced Targeting Computer Improved Medium Armor Plating > --- WEAPON ----------- Field Laser Field Laser Proton Missile Launcher > --- INVENTORY -------- Light Ion Engine Aluminum Leg Aluminum Leg Aluminum Leg Carbon-fiber Leg Titanium Leg High-capacity Battery Seismic Detector Hardened Light Armor Plating EM Pulse Gun Field Laser Pulse Rifle Plasma Cannon Assault Cannon Great Maul [Rating: 44] Favorites ----------- Power Ion Engine Engine Ion Engine Power Core Light Nuclear Core Propulsion Aluminum Leg Leg Aluminum Leg Flight Unit Cooled Cesium-ion Thruster Utility Cooling System Device Cooling System Storage Large Storage Unit Processor Advanced Targeting Computer Protection Improved Light Armor Plating Weapon Field Laser Energy Gun Field Laser Energy Cannon Plasma Cannon Ballistic Gun Heavy Assault Rifle Ballistic Cannon Assault Cannon Launcher Proton Missile Launcher Build | -11 -10 -9 -8 -7 ------- Run | Yrd Mat Mat Mat Fac Slots Evolved 6 | . . 2 2 2 Power . | . . . . . Propulsion 2 | . . 2 . . Utility 3 | . . . 1 2 Weapon 1 | . . . 1 . Parts Attached 97 | 9 10 30 21 27 Power 9 | 2 2 2 2 1 Engine 8 | 2 2 1 2 1 Core 1 | . . 1 . . Reactor . | . . . . . Propulsion 37 | 2 2 13 9 11 Treads . | . . . . . Leg 33 | 2 2 13 9 7 Wheel . | . . . . . Hover . | . . . . . Flight 4 | . . . . 4 Utility 19 | 2 4 3 4 6 Device 8 | 1 3 1 1 2 Storage 5 | 1 1 2 . 1 Processor 1 | . . . . 1 Hackware . | . . . . . Protection 5 | . . . 3 2 Artifact . | . . . . . Weapon 32 | 3 2 12 6 9 Energy Gun 21 | 2 1 8 4 6 Energy Cannon 2 | . . . . 2 Ballistic Gun 6 | 1 1 4 . . Ballistic Cannon 2 | . . . 2 . Launcher 1 | . . . . 1 Special Weapon . | . . . . . Impact Weapon . | . . . . . Slashing Weapon . | . . . . . Piercing Weapon . | . . . . . Special Melee Weapon . | . . . . . Unidentified Prototypes 5 | . . 1 . 4 Parts Lost 18 | . 4 5 4 5 Power 4 | . 1 1 . 2 Propulsion 6 | . 1 3 1 1 Utility 3 | . 1 . 1 1 Weapon 5 | . 1 1 2 1 Highest Loss Streak 4 | . 4 2 2 1 To Critical Strikes . | . . . . . Average Backups 11 | 1 6 12 13 14 Power 1 | . 1 1 1 . Propulsion 2 | . . 1 2 4 Utility 4 | . 2 6 5 2 Weapon 3 | . 1 3 4 6 Tool/Special . | . . . . . Unused Backups 11 | . . 2 1 8 Power . | . . . . . Propulsion 6 | . . . 1 5 Utility 4 | . . 2 . 2 Weapon 1 | . . . . 1 Tool/Special . | . . . . . Average Slot Usage (%) 94 | . 97 94 95 93 Engine 7 | . 13 5 9 6 Core 2 | . . 5 . . Leg 33 | . 26 39 35 28 Device 12 | . 13 11 9 15 Storage 11 | . 14 11 9 10 Processor 1 | . . . . 6 Protection 1 | . . . 7 1 Energy Gun 16 | . 18 14 18 16 Ballistic Gun 5 | . 9 7 4 . Peak Build Rating 44 | 7 11 19 31 44 Average Rating 20 | 6 7 15 25 37 On Entrance 12 | . 7 11 15 27 Naked Turns 33 | . . . . 33 Heaviest Build 51 | 14 23 33 45 51 Greatest Support 72 | 20 20 52 56 72 Greatest Overweight (x) 2 | . 2 1 1 1 Average Overweight (x) . | . . . . . Largest Inventory Capacity 15 | 8 10 15 15 15 Average Capacity 12 | 7 9 12 15 14 Most Carried 15 | 2 10 15 15 15 Average Carried 11 | 1 6 12 13 14 Final Capacity 15 | 8 10 15 15 5 Final Carried 15 | 2 8 14 15 5 Class Distribution -------------------- 36% | Scavenger-Mutant 29% | Mutant 22% | Gunner 4% | Scavenger-Gunner 3% | Tank 3% | Scavenger-Tank Dominant Class ---------------- Mutant | -10/Materials Scavenger-Mutant | -9/Materials Tank | -8/Materials Gunner | -7/Factory Resources | -11 -10 -9 -8 -7 ----------- Run | Yrd Mat Mat Mat Fac Matter Collected 2258 | 317 206 789 401 545 Remotely . | . . . . . Salvage Created 4884 | 208 479 2158 855 1184 Parts 236 | 20 31 106 27 52 Haulers Intercepted 7 | . 1 6 . . Recyclers Shooed 3 | . . 1 1 1 Parts Field Recycled . | . . . . . Retrieved Matter . | . . . . . Parts Self-Destructed . | . . . . . Prevented . | . . . . . Kills | -11 -10 -9 -8 -7 ------- Run | Yrd Mat Mat Mat Fac Combat Hostiles Destroyed 84 | . 11 35 18 20 Guns 72 | . 11 32 16 13 Cannons 2 | . . . 2 . AOE 4 | . . . . 4 Classes Destroyed 15 | 3 5 4 2 1 Worker 10 | 2 1 6 . 1 Builder 3 | . . 2 . 1 Tunneler 7 | 6 . 1 . . Hauler 7 | . 1 6 . . Recycler 5 | 1 1 3 . . Operator 2 | . . 1 1 . Watcher 7 | . 2 4 . 1 Swarmer 13 | . 6 7 . . Grunt 44 | . 2 17 15 10 Brawler 3 | . . 2 . 1 Duelist 1 | . . . 1 . Sentry 14 | . . 9 1 4 Hunter 4 | . . . 1 3 Programmer 2 | . . . . 2 Subdweller 3 | . 3 . . . Best Kill Streak 7 | 3 3 7 5 4 Combat Bots Only 7 | . 3 7 5 4 Max Kills in Single Turn 2 | 1 1 2 1 2 Gunslinging 1 | . . 1 . . Exploded 2 | . . . . 2 Melee . | . . . . . Uniques/NPCs Destroyed . | . . . . . Combat | -11 -10 -9 -8 -7 -------- Run | Yrd Mat Mat Mat Fac Hostile Shots Fired 569 | . 65 166 92 246 Missed 167 | . 17 49 16 85 Hits 402 | . 48 117 76 161 Melee 2 | . . . 2 . Projectile 400 | . 48 117 74 161 Critical Strikes 11 | . 1 5 3 2 Damage Taken 5327 | . 723 1446 1273 1885 Core 1244 | . 163 217 154 710 Absorbed by Shields . | . . . . . Regen/Repaired (Parts) 127 | . 73 54 . . Core Remaining (%) 62 | 100 34 45 72 . Volleys Fired 373 | 30 56 163 64 60 Largest 3 | 2 2 2 3 3 Hottest 223 | 70 90 126 191 223 Shots Fired 790 | 57 97 310 168 158 Gun 750 | 57 97 310 160 126 Cannon 23 | . . . 8 15 Launcher 17 | . . . . 17 Special . | . . . . . Kinetic 203 | 27 26 105 45 . Thermal 537 | 30 67 176 123 141 Explosive . | . . . . . Electromagnetic 50 | . 4 29 . 17 Robot Hit Streak 24 | 6 24 16 16 13 Robot Miss Streak 6 | 2 3 6 4 3 Penetration Max . | . . . . . Secondary Targets 11 | . 2 7 1 1 Max Gunslinging Chain 1 | . 1 1 1 1 Shots Hit Robots 528 | 33 69 199 122 105 Core Hits 221 | 13 29 78 46 55 Critical Kills . | . . . . . Critical Parts Destroyed 1 | . . . 1 . Critical Strikes 21 | 3 4 7 6 1 Burn 20 | 3 4 7 5 1 Destroy 1 | . . . 1 . Melee Attacks . | . . . . . Impact . | . . . . . Slashing . | . . . . . Piercing . | . . . . . Sneak Attacks . | . . . . . Combat Hostiles . | . . . . . Follow-up Attacks . | . . . . . Damage Inflicted 8887 | 375 813 3183 2062 2454 Guns 7904 | 370 813 3113 1944 1664 Cannons 316 | . . . 118 198 Explosions 609 | . . 40 . 569 Melee . | . . . . . Ramming 58 | 5 . 30 . 23 Kinetic 1780 | 121 134 975 550 . Thermal 6271 | 249 633 1952 1512 1925 Explosive . | . . . . . Electromagnetic 778 | . 46 226 . 506 Impact . | . . . . . Slashing . | . . . . . Piercing . | . . . . . Highest Corruption 7 | . . 7 . 7 Average Corruption 4 | . . 6 . 1 Corruption Purged 4 | . . . . 4 Corruption Blocked . | . . . . . Effects 50 | . . 41 . 9 Message Errors 11 | . . 10 . 1 Matter Fused 14 | . . 11 . 3 Heat Flow Errors 3 | . . 2 . 1 Energy Discharges 8 | . . 7 . 1 Parts Rejected 1 | . . 1 . . Parts Fused 1 | . . . . 1 Data Loss (minor) 7 | . . 6 . 1 Data Loss (major) 3 | . . 2 . 1 Misfires 1 | . . 1 . . Weapon Failures 1 | . . 1 . . Overload Shots . | . . . . . Overflow Damage 38 | . . 10 8 20 Projectiles 19 | . . . 8 11 Explosions 19 | . . 10 . 9 Melee . | . . . . . Knockbacks . | . . . . . Impact . | . . . . . Kinetic . | . . . . . Secondary . | . . . . . Self-Inflicted Damage 2 | . . . . 2 Shots 1 | . . . . 1 Rammed . | . . . . . Targets Rammed 5 | 1 . 3 . 1 Kicked 5 | 1 . 3 . 1 Crushed . | . . . . . Highest Temperature 461 | 250 150 259 461 144 Average Temperature 89 | 95 37 66 161 27 Received Heat Transfer 1794 | . 72 591 675 456 Effects 10 | 1 . 2 7 . Shutdowns 2 | . . . 2 . Energy Bleed 1 | . . . 1 . Interference 6 | 1 . 2 3 . Short Circuit 1 | . . . 1 . Siege Activations . | . . . . . Martial Activations . | . . . . . Shielding Activations . | . . . . . Robots Disrupted . | . . . . . Combat Hostiles . | . . . . . Robots Corrupted . | . . . . . Combat Hostiles . | . . . . . Parts Fried 1 | . . 1 . . Impact Corruptions . | . . . . . Robots Melted 7 | . . 4 . 3 Combat Hostiles 6 | . . 3 . 3 Parts Melted 35 | 3 4 12 5 11 Heat Transferred 15842 | 962 2100 5013 3700 4067 Parts Sabotaged . | . . . . . Parts Stolen . | . . . . . Parts Stripped . | . . . . . Power Chain Reactions 2 | . . 1 . 1 Alert | -11 -10 -9 -8 -7 ------- Run | Yrd Mat Mat Mat Fac Maximum Alert Level 2 | . . 2 1 . Low Security (%) 75 | 100 100 58 32 100 Level 1 16 | . . 21 67 . Level 2 7 | . . 19 . . Level 3 . | . . . . . Level 4 . | . . . . . Level 5 . | . . . . . High Security . | . . . . . Max Security . | . . . . . Peak Influence 484 | 10 70 484 358 194 Initial 195 | . . . 195 151 Average 138 | 1 11 208 241 90 Influence Increases 2541 | 45 253 1115 489 639 Destroy 0b10 Robot/C 1620 | . 160 700 360 400 Destroy 0b10 Robot/NC 205 | 45 25 115 5 15 Destroy Leader 428 | . 36 200 60 132 Successful Hack 78 | . 32 18 . 28 Disable Machine 120 | . . 75 45 . Destroy Structure 15 | . . 7 4 4 Lose Combat Pursuer 75 | . . . 15 60 Influence Decreases 2363 | 45 253 651 619 795 Entered New Map 452 | . . . 269 183 Time Decay 1732 | 45 214 601 310 562 Lost Part 179 | . 39 50 40 50 Squads Dispatched 10 | . 1 4 1 4 Investigation 1 | . . . . 1 Extermination 2 | . . . . 2 Reinforcement 7 | . 1 4 1 1 Assault . | . . . . . Garrison . | . . . . . Intercept . | . . . . . Searches Triggered . | . . . . . Construction Impeded . | . . . . . Haulers Reinforced . | . . . . . Active Scanning Responses . | . . . . . Cargo Convoy Interrupts 1 | . . . . 1 Stealth | -11 -10 -9 -8 -7 --------- Run | Yrd Mat Mat Mat Fac Distress Signals 11 | . . 7 3 1 Communications Jammed . | . . . . . Distress Signals . | . . . . . Times Spotted 125 | . 16 48 27 34 Peak Tracking Total 6 | . 3 6 6 5 Tactical Retreats 5 | . . . 1 4 Traps | -11 -10 -9 -8 -7 ------- Run | Yrd Mat Mat Mat Fac Traps Triggered 7 | . . 4 . 3 Indirectly 3 | . . . . 3 Trap Hack Attempts . | . . . . . Triggered . | . . . . . Disarmed . | . . . . . Reprogrammed . | . . . . . Reused . | . . . . . Traps Extracted . | . . . . . Installed . | . . . . . Triggered . | . . . . . Machines | -11 -10 -9 -8 -7 ---------- Run | Yrd Mat Mat Mat Fac Machines Disabled 8 | . . 5 3 . Max in Single Turn 1 | . . 1 1 . Machines Repaired . | . . . . . Machines Dismantled . | . . . . . Machines Sabotaged . | . . . . . Overloaded Fab Kills . | . . . . . Hacking | -11 -10 -9 -8 -7 --------- Run | Yrd Mat Mat Mat Fac Machines Accessed 15 | . 5 7 . 3 Terminals 13 | . 4 6 . 3 Fabricators . | . . . . . Repair Stations 2 | . 1 1 . . Recycling Units . | . . . . . Scanalyzers . | . . . . . Garrison Access . | . . . . . Total Hacks 43 | . 19 20 . 4 Successful 27 | . 12 12 . 3 Failed 16 | . 7 8 . 1 Catastrophic 1 | . 1 . . . Database Lockouts . | . . . . . Manual 34 | . 10 18 2 4 Terminals 32 | . 10 18 . 4 Fabricators . | . . . . . Repair Stations 11 | . 9 2 . . Recycling Units . | . . . . . Scanalyzers . | . . . . . Garrison Access . | . . . . . Terminal Hacks 2 | . 1 1 . . Terminal Index 2 | . 1 1 . . Fabricator Hacks . | . . . . . Repair Station Hacks 8 | . 6 2 . . Scan Component 4 | . 3 1 . . Repair 4 | . 3 1 . . Recycling Unit Hacks . | . . . . . Scanalyzer . | . . . . . Garrison Access Hacks . | . . . . . Unauthorized Hacks 17 | . 5 9 . 3 Terminals 17 | . 5 9 . 3 Botnet 3 | . . 3 . . Operators 2 | . 1 1 . . Skim 12 | . 4 5 . 3 Fabricators . | . . . . . Repair Stations . | . . . . . Recycling Units . | . . . . . Scanalyzers . | . . . . . Garrison Access . | . . . . . Data Cores Recovered . | . . . . . Used . | . . . . . Hacking Detections 14 | . 5 5 1 3 Full Trace Events . | . . . . . Feedback Events . | . . . . . Feedback Blocked . | . . . . . Robot Schematics Acquired . | . . . . . Robots Built . | . . . . . Authchips . | . . . . . Time . | . . . . . Total Robot Build Rating . | . . . . . Part Schematics Acquired . | . . . . . Parts Built . | . . . . . Authchips . | . . . . . Time . | . . . . . Total Part Build Rating . | . . . . . Parts Repaired 4 | . 3 1 . . Time 110 | . 78 32 . . Parts Recycled . | . . . . . Recycled Matter . | . . . . . Retrieved Matter . | . . . . . Retrieved Components . | . . . . . Parts Scanalyzed . | . . . . . Part Schematics Acquired . | . . . . . Parts Damaged . | . . . . . Bothacking | -11 -10 -9 -8 -7 ------------ Run | Yrd Mat Mat Mat Fac Used RIF Installer . | . . . . . Robots Hacked . | . . . . . Non-combat . | . . . . . Combat . | . . . . . Robot Hacks Applied . | . . . . . Relay Couplers Released . | . . . . . Fabnet Peak Effective % . | . . . . . Robots Rewired . | . . . . . Allies Hacked . | . . . . . Hacks Repelled . | . . . . . Allies | -11 -10 -9 -8 -7 -------- Run | Yrd Mat Mat Mat Fac Total Allies . | . . . . . Largest Group . | . . . . . Highest-Rated Group . | . . . . . Highest-Rated Ally . | . . . . . Total Orders . | . . . . . Ally Attacks . | . . . . . Total Damage . | . . . . . Kills . | . . . . . Allies Corrupted . | . . . . . Allies Melted . | . . . . . Intel | -11 -10 -9 -8 -7 ------- Run | Yrd Mat Mat Mat Fac Active Infowar (turns) 2242 | 102 815 292 45 988 Seismic 2242 | 102 815 292 45 988 ECM 3 | . . . . 3 Robot Analysis Total . | . . . . . Derelict Logs Recovered . | . . . . . Drone Launches . | . . . . . Drone Recoveries . | . . . . . Exploration | -11 -10 -9 -8 -7 ------------- Run | Yrd Mat Mat Mat Fac Turns Passed 6173 | 225 1060 2491 693 1704 Spaces Moved 3241 | 102 598 1166 317 1058 Core 78 | 12 . . . 66 Treads . | . . . . . Legs 3024 | 90 598 1166 317 853 Wheels . | . . . . . Hover . | . . . . . Flight 139 | . . . . 139 Fastest Speed 29 | 50 120 120 120 29 Average Speed 121 | 111 126 130 121 108 Slowest Speed 260 | 120 260 190 190 190 Overloaded Moves . | . . . . . Propulsion Burnouts . | . . . . . Robots Hopped 2 | . . . . 2 Potential Cave-ins . | . . . . . Cave-ins Triggered . | . . . . . Exploration Rate (%) 46 | 6 88 87 21 29 Regions Visited 4 Branch Regions . Pre-discovered Areas 1 | . . 1 . . Known Exits Taken . | . . . . . Unknown Exits Taken 4 | 1 1 1 1 . Scrap Searched . | . . . . . Spaces Dug . | . . . . . Terrain Destroyed 6 | . . 3 1 2 Melee . | . . . . . Projectile 1 | . . . 1 . AOE 5 | . . 3 . 2 Terrain Rammed . | . . . . . Walls Destroyed . | . . . . . Machines Disabled . | . . . . . Actions | -11 -10 -9 -8 -7 --------- Run | Yrd Mat Mat Mat Fac Total 4749 | 156 808 1824 488 1473 Wait 892 | 14 120 416 63 279 Move 3233 | 101 597 1165 316 1054 Hop 2 | . . . . 2 Pick Up 38 | 1 11 11 6 9 Fast Attach 28 | 7 4 8 3 6 Attach 12 | . 2 2 4 4 Detach 1 | . . . . 1 Swap 109 | 2 13 35 21 38 Drop 56 | . 5 21 11 19 Fire 373 | 30 56 163 64 60 Melee . | . . . . . Ram . | . . . . . Kick 5 | 1 . 3 . 1 Crush . | . . . . . Escape Stasis . | . . . . . Rewire . | . . . . . Trap . | . . . . . Miscellaneous . | . . . . . Route ------- -11/Scrapyard -10/Materials (discovered 4 exits: *Mat x3 / [*Min]) -9/Materials (discovered 4 exits: *Mat x2 / [*Min x2]) -8/Materials -7/Factory History --------- Turn | Location | Event 7 | -11/Scrapyard | Discovered new exit (range 15) 226 | -11/Scrapyard | Entered Materials 303 | -10/Materials | Build established: Mutant 380 | -10/Materials | Discovered new exit (range 6) 621 | -10/Materials | Repaired Aluminum Leg 649 | -10/Materials | Repaired Med. Laser 676 | -10/Materials | Repaired Aluminum Leg 693 | -10/Materials | Discovered new exit (range 10) 884 | -10/Materials | Discovered new exit (range 13) 1126 | -10/Materials | Derelicts attacked the area 1155 | -10/Materials | Core integrity fell below 50% 1215 | -10/Materials | Lost 4 parts (1p1n1u1w) 1273 | -10/Materials | Discovered new exit (range 8) 1286 | -10/Materials | Entered another Materials area 1286 | -9/Materials | Evolved 2 slots: Propulsion x2 1473 | -9/Materials | Destroyed 7 combat bots 1533 | -9/Materials | Build established: Scavenger-Mutant 2180 | -9/Materials | Repaired Imp. Aluminum Leg 2265 | -9/Materials | Build established: Mutant 2378 | -9/Materials | Discovered new exit (range 12) 2626 | -9/Materials | Discovered new exit (range 15) 2629 | -9/Materials | Build established: Scavenger-Mutant 2951 | -9/Materials | Discovered new exit (range 13) 3147 | -9/Materials | Discovered new exit (range 16) 3553 | -9/Materials | Learned location of 1 exit from Recycling 3572 | -9/Materials | Core integrity fell below 50% 3585 | -9/Materials | Learned Storage emergency access door positions 3614 | -9/Materials | Loaded intel: 25 trap records 3615 | -9/Materials | Learned Materials trap positions 3625 | -9/Materials | Learned 2 Storage zone layouts 3643 | -9/Materials | Learned 2 Storage zone layouts 3777 | -9/Materials | Entered another Materials area 3777 | -8/Materials | Evolved 2 slots: Utility x1, Weapon x1 3778 | -8/Materials | Loaded intel: 10 trap records 4418 | -8/Materials | Discovered new exit (range 16) 4470 | -8/Materials | Entered Factory 4470 | -7/Factory | Evolved 2 slots: Utility x2 5018 | -7/Factory | Build established: Gunner 5578 | -7/Factory | Cargo convoy interrupted 6061 | -7/Factory | Released all parts (12) 6067 | -7/Factory | Core integrity fell below 50% 6073 | -7/Factory | Core integrity fell below 20% 6174 | -7/Factory | Destroyed by H-55 Commando with Gauss Rifle Last Messages --------------- 06094_ Identified Cld. Cesium-ion Thruster. 06095_ U-05 Engineer works on Matter Pump. 06096_ Acquired Cld. Cesium-ion Thruster. 06097_ K-01 Serf collects debris. 06098_ Acquired Cld. Cesium-ion Thruster. 06098_ Door malfunctions. 06100_ Acquired Prototype Energy Cannon. 06100_ Identified Neutron Cannon. 06101_ Dropped Carbon-fiber Leg. 06104_ K-01 Serf cleans the Matter Pump. 06123_ R-06 Scavenger inserts Cld. Cesium-ion Thruster into recycling unit. 06126_ R-06 Scavenger inserts Prototype Hover Unit into recycling unit. 06129_ R-06 Scavenger inserts Cld. Cesium-ion Thruster into recycling unit. 06135_ System corrupted: Energy discharge (-1). 06143_ K-01 Serf cleans the Matter Pump. 06155_ Cld. Cesium-ion Thruster destroyed. 06159_ Acquired Prototype Flight Unit. 06159_ Identified Imp. Cesium-ion Thruster. 06161_ System corrupted: Component data lost. 06174_ Slug penetrates Nuclear Reactor. Map ----- +----------------------------------------------------+ | #?????????????????????????????????????? | | #?????????????????????????????????????? | | #?????????????????????????????????????? | | #?????????????????????????????????????? | | #?????????????????????????????????????? | | #?????????????????????????????????????? | | #?????????????????????????????????????? | | ##########????????????????????????????? | | #????????????????????????????? | | ^ #????????????????????????????? | | #????????????????????????????? | | """ "%" """ """ #????????????????????????????? | | """ """ """ """ #????????????????????????????? | | """ """ """ """ ##############???????????????? | | # [ #???????????????? | | """ """ """ """ # #???????????????? | | """ """ """ """ # #???????????????? | | """ """ """ """ # #???????????????? | | # """ """ #???????????????? | | """ """ """ """ # """ """ #???????????????? | | """ """ """ """ + """ """ #???????????????? | | """ """ """ """ # x #???????????????? | | # """i""" #???????????????? | | #=h""" """ #???????????????? | | #"""T"""# ^ # h"""p""" #???????????????? | | ######### # @ #???????????????? | | #???????# ##############???????????????? | | #???????# #????????????????????????????? | | #???????# #????????????????????????????? | | #???????# ""Y"" #????????????????????????????? | | #???????# """"" #????????????????????????????? | | ##???????# #????????????????????????????? | | #???????+ #????????????????????????????? | | #???????#+#####+####????????????????????????????? | | #????????????? ????????????????????????????????? | | #????????????? ????????????????????????????????? | | ]#???????????????????????????????????????????????? | | ?????????????????????????????????????????????????? | | ?????????????????????????????????????????????????? | | ?????????????????????????????????????????????????? | | ?????????????????????????????????????????????????? | | ?????????????????????????????????????????????????? | | ?????????????????????????????????????????????????? | | ?????????????????????????????????????????????????? | | ?????????????????????????????????????????????????? | | ?????????????????????????????????????????????????? | | | | | | | | | +----------------------------------------------------+ Best States ------------- Heat Dissipation 78 Energy Generation 18 Energy Capacity 400 Matter Stores 300 Matter Capacity 300 Sight Range 16 Terrain Scan Density 10 Armor Coverage 300 Evasion (%) 64 Targeting Accuracy 8 Item Schematics ----------------- None Robot Schematics ------------------ None Fabricated ------------ Nothing Repaired ---------- Aluminum Leg | 68% | -10/Materials Med. Laser | 62% | -10/Materials Aluminum Leg | 78% | -10/Materials Imp. Aluminum Leg | 46% | -9/Materials Alien Tech Used ----------------- None Achievements -------------- None Challenges ------------ None Game ------ Seed MachinePersonalFocus Manual? 0 Play Time 00:42:59 Cumulative 207.1 hours Start 2025.10.21 @ 21:49:55 End 2025.10.21 @ 22:32:57 Sessions 1 Manual Loads 0 Difficulty Rogue Special Mode None Game No. 341 Rogue 339 Adventurer 0 Explorer 2 Win Type - Total 3 Types 2/0/0/1/0/0/0/0/0/0 Lore% 51 Gallery% 60 Achievement% 52 Wizard Run 0 Options --------- Layout 0 ASCII 0 Keyboard 1 Movement Arrows Keybinds 0 Fullscreen 1 Font 20/SmallcapsGlow Map View 82x60 Zoom Use 43% Tactical HUD 1 Map Filters NONE Filters NONE Steam 1 RUN: 3468e2f7-7ae1-4725-97ee-b8eeef3ccb4e